fUSD/lending_fUSD_20240706
["ID","MTS","AMOUNT","RATE_DAILY","PERIOD"]
[331371839,1720295434198,-465.65120639,0.00014,2]
[331371840,1720295434212,-850.40212826,0.00014,2]
[331371841,1720295434224,-641.17151827,0.00014,2]
[331371842,1720295434238,-2548.04149811,0.00014,2]
[331371843,1720295434250,-1203.63841064,0.00014,2]
[331371844,1720295434265,-1179.00859254,0.00014,2]
[331371845,1720295434279,-7977.80085835,0.00014,2]
[331371846,1720295434294,-7505.33790004,0.00014,2]
[331371847,1720295434313,-122900.2960019,0.00014,2]
[331371848,1720295434325,-294.08982411,0.00014,2]
[331371849,1720295434338,-283.87982098,0.00014,2]
[331371850,1720295434350,-2464.57032252,0.00014,2]
[331371851,1720295434364,-2790.34058908,0.00014,2]
[331371852,1720295434377,-19609.71284197,0.00014,2]
[331371853,1720295434391,-1182590.10741875,0.00014,2]
[331371854,1720295434421,-1192.8949193,0.00014,2]
[331371882,1720295439747,-300.001004,0.00014,2]
[331371883,1720295439761,-6755.01184684,0.00014,2]
[331371884,1720295439773,-1490.43650887,0.00014,2]
[331371885,1720295439789,-354.23051344,0.00014,2]
[331371888,1720295440798,-3880.96957075,0.00014,2]
[331371891,1720295440819,-3898.02847082,0.00014,2]
[331371893,1720295440832,-1664.7,0.00014,2]
[331371895,1720295440855,-464.58898707,0.00014,2]
[331371896,1720295440870,-79999.56996837,0.00014,2]
[331371897,1720295440883,-44244.37066151,0.00014,2]
[331371898,1720295440894,-28376.7119956,0.00014,2]
[331371900,1720295443308,-15733.86736011,0.00014,2]
[331371901,1720295443321,-1738.755,0.00014,2]
[331371902,1720295443341,-765.81000004,0.00014,2]
[331371903,1720295443362,-278.2272897,0.00014,2]
[331371904,1720295443378,-3922.05,0.00014,2]
[331371905,1720295443424,-3199.0973326,0.00014,2]
[331371955,1720295447228,-501.70372601,0.00014,2]
[331371956,1720295447241,-1562.11077063,0.00014,2]
[331371961,1720295447281,-32540.68456682,0.00014,2]
[331371964,1720295447295,-13996.25063821,0.00014,2]
[331371967,1720295447316,-2148.03170785,0.00014,2]
[331371970,1720295447332,-877.554818,0.00014,2]
[331371975,1720295447384,-431.96925012,0.00014,2]
[331371977,1720295447400,-65911.60136486,0.00014,2]
[331371980,1720295447417,-2197.11899776,0.00014,2]
[331371982,1720295447430,-880.21327524,0.00014,2]
[331371994,1720295448097,-2247.44095932,0.00014,2]
[331371997,1720295448122,-1752.76552641,0.00014,2]
[331371999,1720295448142,-1211.81700269,0.00014,2]
[331372001,1720295448158,-504.6728537,0.00014,2]
[331372004,1720295448190,-1400.8100277,0.00014,2]
[331372005,1720295448203,-10286.01035164,0.00014,2]
[331372006,1720295448217,-3299.06240855,0.00014,2]
[331372010,1720295448249,-284.2125,0.00014,2]
[331372011,1720295448262,-908.75603999,0.00014,2]
[331372014,1720295448288,-702.22,0.00014,2]
[331372179,1720295451746,-2847.59268996,0.00014,2]
[331372181,1720295451776,-1129.03455594,0.00014,2]
[331372183,1720295451810,-1475.94391465,0.00014,2]
[331372184,1720295451868,-1459.2,0.00014,2]
[331372185,1720295451887,-10587.14206581,0.00014,2]
[331372186,1720295451907,-36512.47496338,0.00014,2]
[331372187,1720295451921,-17808.97431362,0.00014,2]
[331372188,1720295789978,13.23974126,0.00011199,2]
[331372189,1720295790023,286.52364744,0.00011199,2]
[331372190,1720295883670,1071.37125319,0.00011199,2]
[331372191,1720295887718,366.11090361,0.00011199,2]
[331372192,1720295898845,307.35313311,0.00011199,2]
[331372193,1720296005530,155.35150199,0.00011199,2]
[331372194,1720296005609,483.68385979,0.00011199,2]
[331372195,1720296008827,235.38273328,0.00011199,2]
[331372196,1720296023212,1706.01053776,0.00011199,2]
[331372197,1720296038709,774.41,0.00010919,2]
[331372198,1720296076931,1287.33023709,0.00011199,2]
[331372199,1720296098626,1216.48344249,0.00011199,2]
[331372200,1720296105194,258.88603077,0.00011199,2]
[331372201,1720296117127,301.19314596,0.00011199,2]
[331372202,1720296119711,524.36809456,0.00011199,2]
[331372203,1720296123303,647.71813835,0.00011199,2]
[331372204,1720296141715,492.08745372,0.00011199,2]
[331372205,1720296171806,844.6469,0.00011199,2]
[331372206,1720296173807,520.84431968,0.00011199,2]
[331372207,1720296179780,155.0,0.00011199,2]
[331372208,1720296214480,155.4020911,0.00011199,2]
[331372209,1720296224133,556.72469797,0.00011199,2]
[331372210,1720296226850,155.0,0.00011199,2]
[331372211,1720296233172,269.73227948,0.00011199,2]
[331372212,1720296237318,1903.00590412,0.00011199,2]
[331372213,1720296241046,613.01736691,0.00011199,2]
[331372214,1720296256738,1253.15958212,0.00011199,2]
[331372215,1720296257226,1055.23788443,0.00011199,2]
[331372216,1720296272568,714.61419842,0.00011199,2]
[331372217,1720296272780,365.10484834,0.00011199,2]
[331372218,1720296282724,717.89169523,0.00011199,2]
[331372219,1720296289172,496.10852137,0.00011199,2]
[331372220,1720296290429,788.93887084,0.00011199,2]
[331372221,1720296290978,173.88799368,0.00011199,2]
[331372222,1720296292394,202.34507322,0.00011199,2]
[331372223,1720296295191,251.35295049,0.00011199,2]
[331372224,1720296297173,386.68404747,0.00011199,2]
[331372225,1720296300806,242.49333518,0.00011199,2]
[331372226,1720296312184,292.54926927,0.00011199,2]
[331372227,1720296316773,878.73925346,0.00011199,2]
[331372228,1720296320845,263.58284568,0.00011199,2]
[331372229,1720296320973,788.93887084,0.00011199,2]
[331372230,1720296325938,186.51762411,0.00011199,2]
[331372231,1720296330676,155.17578184,0.00011199,2]
[331372232,1720296332044,242.49333518,0.00011199,2]
[331372233,1720296334018,259.91784709,0.00011199,2]
[331372234,1720296366253,366.2638707,0.00011199,2]
[331372235,1720296383417,955.85753929,0.00011199,2]
[331372236,1720296386827,212.54,0.00010959,2]
[331372237,1720296388177,19631.30329052,0.00011199,2]
[331372238,1720296400590,297.82193595,0.00011199,2]
[331372239,1720296403398,294.11862641,0.00011199,2]
[331372240,1720296403633,36884.34129068,0.00011199,2]
[331372241,1720296406263,192.50373162,0.00011199,2]
[331372242,1720296409397,155.0,0.00011199,2]
[331372243,1720296411800,520.56023972,0.00011199,2]
[331372249,1720296456051,7000.0,0.00011199,2]
[331372250,1720296469179,208.89589019,0.00011199,2]
[331372251,1720296469440,6000.0,0.00011199,2]
[331372252,1720296488980,255.63531546,0.00011199,2]
[331372253,1720296502856,473.99379803,0.00011199,2]
[331372254,1720296518865,4847.54696968,0.00011199,2]
[331372255,1720296527989,156.91512945,0.00011199,2]
[331372256,1720296530307,210.28152083,0.00011199,2]
[331372257,1720296554107,155.0,0.00011199,2]
[331372258,1720296554658,17510.49350711,0.00011199,2]
[331372259,1720296554784,227.19964772,0.00011199,2]
[331372263,1720296562524,159.9452446,0.00011199,2]
[331372264,1720296574254,177.11,0.00010959,2]
[331372265,1720296579684,276.25112655,0.00011199,2]
[331372266,1720296584782,885.6,0.00010959,2]
[331372267,1720296591581,842.43,0.00010038,2]
[331372268,1720296601008,1285.144203,0.00011199,2]
[331372269,1720296608888,276.25112655,0.00011199,2]
[331372270,1720296612208,1055.73847506,0.00011199,2]
[331372271,1720296618560,157.06639409,0.00011199,2]
[331372358,1720296633412,-197.61572727,0.00011812,2]
[331372360,1720296633422,-71.51311934,0.00011872,2]
[331372377,1720296633723,-178.48688066,0.00011872,2]
[331372379,1720296633733,-817.0,0.00011911,2]
[331372381,1720296633743,-1160.310535,0.00011912,2]
[331372383,1720296633753,-197.61572727,0.00011931,2]
[331372385,1720296633762,-250.0,0.0001196,2]
[331372387,1720296633772,-197.61572727,0.0001205,2]
[331372389,1720296633782,-157.97753922,0.00012072,2]
[331372391,1720296633792,-6192.78687506,0.00012072,2]
[331372393,1720296633802,-310.61,0.00012096,2]
[331372395,1720296633812,-20648.70019641,0.00012131,2]
[331372397,1720296633825,-3251.29980359,0.00012131,2]
[331372399,1720296633835,-608.54,0.0001215,2]
[331372401,1720296633845,-1481.88,0.00012166,2]
[331372403,1720296633856,-814.94452143,0.00012173,2]
[331372405,1720296633870,-644.62,0.00012173,2]
[331372408,1720296633880,-2614.05196073,0.00012173,2]
[331372410,1720296633892,-909.3594811,0.00012173,2]
[331372412,1720296633905,-548.34318324,0.00012173,2]
[331372414,1720296633917,-1534.38737493,0.00012173,2]
[331372416,1720296633928,-500.0,0.00012184,2]
[331372418,1720296633939,-200.0,0.00012195,2]
[331372420,1720296633949,-155.0,0.00012273,2]
[331372421,1720296633958,-842.43,0.00012302,2]
[331372422,1720296633969,-269.73227948,0.00012302,2]
[331372423,1720296633979,-626.01775998,0.00012302,2]
[331372424,1720296633989,-691.06526812,0.00012302,2]
[331372425,1720296633999,-675.36193651,0.00012302,2]
[331372426,1720296634009,-519.15175191,0.00012314,2]
[331372427,1720296634019,-163.86646087,0.00012314,2]
[331372428,1720296634029,-155.0,0.00012314,2]
[331372429,1720296634039,-544.84128592,0.00012314,2]
[331372430,1720296634048,-155.0,0.00012314,2]
[331372431,1720296634059,-174.02504748,0.00012314,2]
[331372432,1720296634068,-378.18292746,0.00012314,2]
[331372433,1720296634078,-248.13765487,0.00012314,2]
[331372434,1720296634088,-155.0,0.00012314,2]
[331372435,1720296634097,-450.0,0.00012314,2]
[331372436,1720296634107,-150.0,0.00012378,2]
[331372437,1720296634117,-1408.83,0.00012378,2]
[331372438,1720296634126,-1489.97,0.00012393,2]
[331372439,1720296634136,-49.03068145,0.00012393,2]
[331372440,1720296634148,-101.95931855,0.00012393,2]
[331372441,1720296634158,-1000.0,0.00012398,2]
[331372442,1720296634167,-151.35,0.00012724,2]
[331372443,1720296634177,-151.35,0.00012763,2]
[331372444,1720296634188,-151.35,0.00012802,2]
[331372445,1720296634199,-8537.91,0.00012814,2]
[331372446,1720296634208,-150.99,0.00012814,2]
[331372448,1720296634219,-1359.10327007,0.00012814,2]
[331372450,1720296634235,-8640.88672993,0.00012814,2]
[331372452,1720296634246,-321.67,0.00012814,2]
[331372455,1720296634256,-906.1,0.00012814,2]
[331372456,1720296634267,-151.35,0.00012841,2]
[331372458,1720296634279,-1292.91,0.00012841,2]
[331372461,1720296634291,-499.99,0.00012841,2]
[331372463,1720296634302,-306.06,0.00012847,2]
[331372465,1720296634312,-761.3,0.00012852,2]
[331372467,1720296634323,-151.35,0.0001288,2]
[331372469,1720296634333,-151.35,0.00012919,2]
[331372471,1720296634343,-151.35,0.00012958,2]
[331372472,1720296634353,-511.0,0.00012966,2]
[331372475,1720296634363,-151.35,0.00012997,2]
[331372477,1720296634372,-151.35,0.00013036,2]
[331372479,1720296634389,-151.35,0.00013075,2]
[331372481,1720296634400,-151.35,0.00013114,2]
[331372483,1720296634409,-155.0,0.00013128,2]
[331372485,1720296634420,-572.25853571,0.00013128,2]
[331372487,1720296634430,-9236.41322618,0.00013128,2]
[331372490,1720296634446,-718.05959923,0.00013128,2]
[331372492,1720296634456,-790.85425404,0.00013128,2]
[331372494,1720296634467,-242.49333518,0.00013128,2]
[331372496,1720296634477,-4034.4417975,0.00013128,2]
[331372498,1720296634487,-518.69562264,0.00013128,2]
[331372500,1720296634498,-600.0,0.00013141,2]
[331372502,1720296634508,-299.99,0.00013141,2]
[331372504,1720296634518,-151.35,0.00013153,2]
[331372506,1720296634527,-151.35,0.00013192,2]
[331372508,1720296634537,-150.0,0.000132,2]
[331372510,1720296634547,-151.35,0.00013231,2]
[331372512,1720296634556,-151.35,0.0001327,2]
[331372514,1720296634566,-151.35,0.00013309,2]
[331372516,1720296634576,-151.35,0.00013348,2]
[331372518,1720296634587,-151.17,0.00013378,2]
[331372520,1720296634597,-151.35,0.00013387,2]
[331372522,1720296634607,-3000.000001,0.00013472,2]
[331372524,1720296634617,-179.93323014,0.00013472,2]
[331372526,1720296634627,-168.18539232,0.00013489,2]
[331372528,1720296634637,-210.18032515,0.00013574,2]
[331372530,1720296634648,-227.19964772,0.00013574,2]
[331372532,1720296634658,-238.27870455,0.00013574,2]
[331372534,1720296634668,-204408.0,0.00013584,2]
[331372536,1720296634678,-157.97753922,0.00013589,2]
[331372538,1720296634692,-212.4008,0.0001362,2]
[331372540,1720296634701,-2500.0,0.00013621,2]
[331372543,1720296634712,-600.0,0.00013689,2]
[331372544,1720296634721,-168.18539231,0.00013695,2]
[331372546,1720296634731,-333.99,0.00013699,2]
[331372549,1720296634741,-855.81,0.00013699,2]
[331372551,1720296634750,-166.0,0.0001372,2]
[331372552,1720296634760,-618.0,0.0001372,2]
[331372554,1720296634771,-449.0,0.0001372,2]
[331372557,1720296634780,-443.0,0.0001372,2]
[331372559,1720296634790,-813.0,0.0001372,2]
[331372561,1720296634800,-150.0,0.0001372,2]
[331372563,1720296634809,-1304.0,0.0001372,2]
[331372565,1720296634819,-3187.0,0.0001372,2]
[331372567,1720296634828,-1986.0,0.0001372,2]
[331372569,1720296634838,-548.0,0.0001372,2]
[331372571,1720296634848,-2375.0,0.0001372,2]
[331372572,1720296634861,-4822.712,0.0001372,2]
[331372574,1720296634871,-5806.0,0.0001372,2]
[331372576,1720296634880,-1664.0,0.0001372,2]
[331372578,1720296634890,-18271.1508077,0.0001372,2]
[331372581,1720296634904,-1270.36620858,0.0001372,2]
[331372583,1720296634915,-18693.48298372,0.0001372,2]
[331372585,1720296634924,-291.0,0.0001372,2]
[331372587,1720296634937,-362.37641333,0.0001372,2]
[331372590,1720296634958,-69.02558667,0.0001372,2]
[331372592,1720296634970,-1500.0,0.00013723,2]
[331372594,1720296634980,-1500.0,0.00013727,2]
[331372596,1720296634990,-151.47007678,0.00013733,2]
[331372598,1720296635000,-150.0,0.00013747,2]
[331372600,1720296635010,-300.0,0.00013751,2]
[331372602,1720296635020,-1500.0,0.00013753,2]
[331372604,1720296635031,-155.0,0.00013759,2]
[331372606,1720296635041,-312.82557144,0.0001376,2]
[331372608,1720296635051,-522.07249562,0.00013764,2]
[331372611,1720296635063,-602.4599999,0.00013764,2]
[331372613,1720296635076,-331.9599993,0.00013764,2]
[331372615,1720296635089,-43.50750518,0.00013764,2]
[331372617,1720296635099,-925.94902019,0.00013767,2]
[331372619,1720296635111,-574.05097981,0.00013767,2]
[331372622,1720296635120,-250.0,0.00013783,2]
[331372624,1720296635131,-400.0,0.00013783,2]
[331372644,1720296635480,-500.0,0.00013783,2]
[331372645,1720296635492,-239.64,0.00013783,2]
[331372646,1720296635502,-235.78,0.00013783,2]
[331372647,1720296635513,-150.0,0.00013792,2]
[331372648,1720296635524,-858.12989935,0.000138,2]
[331372649,1720296635537,-1565.31339387,0.000138,2]
[331372650,1720296636646,1013.16514783,0.00011199,2]
[331372677,1720296638574,-475.8255345,0.00012314,2]
[331372679,1720296638584,-1944.98490678,0.000138,2]
[331372681,1720296638594,-500.0,0.000138,2]
[331372683,1720296638603,-4054.072,0.000138,2]
[331372685,1720296638613,-1000.0,0.000138,2]
[331372686,1720296638622,-801.1749,0.000138,2]
[331372688,1720296638632,-1017.0,0.000138,2]
[331372691,1720296638641,-312.82557141,0.00013807,2]
[331372692,1720296638651,-300.0,0.00013808,2]
[331372695,1720296638661,-300.0,0.00013816,2]
[331372699,1720296638671,-1003.72483795,0.00013817,2]
[331372702,1720296638684,-312.6138,0.00013817,2]
[331372704,1720296638696,-183.66136205,0.00013817,2]
[331372707,1720296638706,-259.46956177,0.00013827,2]
[331372710,1720296638717,-774.06996451,0.00013827,2]
[331372713,1720296638729,-427.20419193,0.00013827,2]
[331372775,1720296639256,-39.25628179,0.00013827,2]
[331372777,1720296639266,-1500.0,0.00013832,2]
[331372779,1720296639276,-382.66889221,0.0001384,2]
[331372781,1720296639286,-78.04195507,0.00013842,2]
[331372783,1720296639298,-738.11002,0.00013842,2]
[331372785,1720296639310,-683.84802493,0.00013842,2]
[331372787,1720296639320,-1500.0,0.00013848,2]
[331372789,1720296639331,-312.82557141,0.00013853,2]
[331372791,1720296639341,-150.0,0.00013855,2]
[331372793,1720296639351,-6748.44329574,0.0001386,2]
[331372795,1720296639363,-2392.31790448,0.0001386,2]
[331372798,1720296639375,-1988.46091552,0.0001386,2]
[331372800,1720296639387,-500.6964493,0.0001386,2]
[331372815,1720296640588,-206.15312302,0.00013574,2]
[331372816,1720296640598,-263.58284568,0.00013574,2]
[331372817,1720296640607,-20171.61604303,0.0001386,2]
[331372819,1720296640618,-2852.43337,0.0001386,2]
[331372820,1720296640627,-150.0,0.00013861,2]
[331372822,1720296640636,-150.0,0.0001388,2]
[331372824,1720296640646,-500.0,0.00013888,2]
[331372826,1720296640656,-848.295,0.0001389,2]
[331372827,1720296640665,-150.0,0.00013894,2]
[331372828,1720296640675,-12491.4995,0.000139,2]
[331372829,1720296640685,-161.3672115,0.000139,2]
[331372830,1720296640695,-21022.1544,0.000139,2]
[331372831,1720296640704,-512.69815341,0.000139,2]
[331372832,1720296640714,-40837.0757,0.000139,2]
[331372833,1720296640724,-168.18539231,0.000139,2]
[331372834,1720296640734,-156.06626322,0.000139,2]
[331372835,1720296640744,-312.82557141,0.000139,2]
[331372836,1720296640753,-335.96765479,0.000139,2]
[331372837,1720296640763,-398.99338911,0.000139,2]
[331372838,1720296640772,-13685.38268666,0.000139,2]
[331372839,1720296640781,-300.0,0.00013911,2]
[331372840,1720296640791,-150.0,0.00013923,2]
[331372841,1720296640800,-1500.0,0.0001393,2]
[331372842,1720296640810,-150.0,0.00013935,2]
[331372843,1720296640824,-1000.0,0.00013947,2]
[331372844,1720296640834,-150.0,0.0001395,2]
[331372845,1720296640843,-1500.0,0.0001395,2]
[331372846,1720296640853,-1500.0,0.00013953,2]
[331372847,1720296640866,-150.0,0.00013958,2]
[331372848,1720296640875,-1500.0,0.00013961,2]
[331372849,1720296640885,-212.7818,0.00013973,2]
[331372850,1720296640895,-150.0,0.00013975,2]
[331372851,1720296640906,-150.0,0.00013976,2]
[331372852,1720296640915,-1217.55527685,0.00013981,2]
[331372853,1720296640925,-2766.8164691,0.0001399,2]
[331372854,1720296640937,-9008.7932824,0.0001399,2]
[331372855,1720296640946,-1058.52178485,0.0001399,2]
[331372856,1720296640959,-894.29046455,0.0001399,2]
[331372857,1720296640970,-177.56725053,0.0001399,2]
[331372858,1720296640981,-78.84293457,0.0001399,2]
[331372859,1720296640994,-98.72431596,0.0001399,2]
[331372860,1720296641007,-177.56725053,0.0001399,2]
[331372861,1720296641017,-300.0,0.00013993,2]
[331372862,1720296641026,-1500.0,0.00013994,2]
[331372863,1720296641036,-70618.87572376,0.00014,2]
[331372864,1720296641047,-342.30435035,0.00014,2]
[331372865,1720296641059,-1677.4,0.00014,2]
[331372866,1720296641070,-3755.125,0.00014,2]
[331372867,1720296641082,-4608.07243216,0.00014,2]
[331372868,1720296641093,-63602.44539544,0.00014,2]
[331372869,1720296641105,-63502.53377146,0.00014,2]
[331372870,1720296641117,-9920.5,0.00014,2]
[331372871,1720296641128,-864.37318362,0.00014,2]
[331372872,1720296641140,-3200.6762738,0.00014,2]
[331372881,1720296641362,-3020.85245024,0.00014,2]
[331372882,1720296641373,-2920.00408082,0.00014,2]
[331372883,1720296641385,-736.6467677,0.00014,2]
[331372884,1720296641396,-578.34375556,0.00014,2]
[331372919,1720296641990,-85567.13992091,0.00014,2]
[331372920,1720296642001,-373.89184271,0.00014,2]
[331372921,1720296642012,-1697.27162398,0.00014,2]
[331372922,1720296642024,-397.63098387,0.00014,2]
[331372923,1720296642036,-3674.45,0.00014,2]
[331372924,1720296642047,-256.89893274,0.00014,2]
[331372925,1720296642058,-533.1,0.00014,2]
[331372926,1720296642071,-271.26559914,0.00014,2]
[331372927,1720296642082,-3227.78121586,0.00014,2]
[331372928,1720296642092,-376.955934,0.00014,2]
[331372929,1720296642104,-670.7,0.00014,2]
[331372930,1720296642115,-9868.98114784,0.00014,2]
[331372931,1720296642129,-3870.18624551,0.00014,2]
[331372932,1720296642140,-500.0,0.00014,2]
[331373002,1720296644287,-823.79986544,0.00011772,2]
[331373003,1720296644296,-48445.59941982,0.00014,2]
[331373004,1720296644308,-301.88553806,0.00014,2]
[331373116,1720296645730,-5557.37127244,0.00014,2]
[331373118,1720296645741,-655.55051739,0.00014,2]
[331373397,1720296648112,-823.79986543,0.00011792,2]
[331373399,1720296648122,-6472.93982473,0.00014,2]
[331373766,1720297042299,613.20687499,0.00011199,2]
[331373767,1720297049984,475.32285004,0.00011199,2]
[331373769,1720297078285,170.49532774,0.00011199,2]
[331373770,1720297087642,155.79468526,0.00011199,2]
[331373771,1720297089246,286.90913679,0.00011199,2]
[331373772,1720297089795,166.73888949,0.00011199,2]
[331373773,1720297093613,156.04927212,0.00011199,2]
[331373774,1720297094922,119585.37590576,0.00011199,2]
[331373776,1720297107749,163.86646087,0.00011199,2]
[331373777,1720297109346,227.19964772,0.00011199,2]
[331373778,1720297112337,156.08749291,0.00011199,2]
[331373780,1720297140451,394.97996597,0.00011199,2]
[331373781,1720297141871,268.67520676,0.00011199,2]
[331373782,1720297162380,390.91214695,0.00011199,2]
[331373783,1720297169602,178.36010777,0.00011199,2]
[331373784,1720297175028,310.0,0.00011199,2]
[331373792,1720297234387,263.31997731,0.00011199,2]
[331373795,1720297255698,793.06,0.00010738,2]
[331373804,1720297338477,219.43331443,0.00010738,2]
[331373805,1720297356223,219.43331443,0.00010738,2]
[331373806,1720297359900,12087.19034661,0.00011199,2]
[331373807,1720297386960,23286.60844876,0.00011199,2]
[331373809,1720297425783,157.070705,0.00025,60]
[331373810,1720297429466,157.070705,0.00025,61]
[331373811,1720297432036,157.070705,0.00025,62]
[331373812,1720297441635,157.070705,0.00025,63]
[331373814,1720297458580,889.29811363,0.00011199,2]
[331373815,1720297465339,173.070705,0.00025,67]
[331373816,1720297465488,155.0,0.00011199,2]
[331373819,1720297541452,155.0,0.00011199,2]
[331373820,1720297552240,164.2199179,0.00011199,2]
[331373822,1720297584810,227.19964772,0.00011199,2]
[331373823,1720297603754,7476.76811966,0.00011199,2]
[331373826,1720297639454,328.50066625,0.00011199,2]
[331373831,1720297652452,155.0,0.00011199,2]
[331373832,1720297663835,515.3187701,0.00011199,2]
[331373851,1720297787404,3393.16408193,0.00011199,2]
[331373870,1720297832764,-299.99,0.00012167,2]
[331373873,1720297832949,-3494.76952503,0.00012167,2]
[331373874,1720297832962,-3660.79247175,0.00012167,2]
[331373875,1720297832972,-237.05,0.00012267,2]
[331373876,1720297832983,-150.0,0.00012293,2]
[331373877,1720297832992,-155.48552727,0.00012302,2]
[331373878,1720297833002,-200.0,0.00012305,2]
[331373879,1720297833012,-300.0,0.00012328,2]
[331373880,1720297833022,-6038.92834925,0.00012329,2]
[331373881,1720297833033,-1230.78807392,0.00012329,2]
[331373882,1720297833045,-269.09758648,0.00012329,2]
[331373883,1720297833058,-1841.02372038,0.00012329,2]
[331373884,1720297833070,-5962.64295461,0.00012329,2]
[331373885,1720297833081,-8557.51931536,0.00012329,2]
[331373886,1720297833091,-500.0,0.00012333,2]
[331373887,1720297833102,-346.14,0.00012333,2]
[331373888,1720297833111,-213.18,0.00012339,2]
[331373889,1720297833121,-150.99,0.00012339,2]
[331373890,1720297833130,-1720.84,0.00012419,2]
[331373891,1720297833140,-250.0,0.00012437,2]
[331373892,1720297833150,-600.0,0.00012463,2]
[331373893,1720297833159,-499.99,0.00012463,2]
[331373894,1720297833169,-155.69771863,0.00012591,2]
[331373895,1720297833179,-7691.88,0.00012591,2]
[331373896,1720297833188,-500.0,0.0001266,2]
[331373897,1720297833198,-4390.74,0.0001268,2]
[331373898,1720297833208,-250.0,0.00012691,2]
[331373899,1720297833218,-854.45,0.00012741,2]
[331373900,1720297833228,-419.2,0.00012741,2]
[331373901,1720297833238,-199.6,0.0001275,2]
[331373902,1720297833252,-380.9838,0.00012755,2]
[331373903,1720297833262,-200.0,0.00012814,2]
[331373904,1720297833271,-1708.9,0.00012841,2]
[331373905,1720297833280,-838.4,0.00012841,2]
[331373906,1720297833292,-400.0,0.00012842,2]
[331373907,1720297833302,-419.2,0.00012941,2]
[331373908,1720297833312,-419.2,0.00012941,2]
[331373909,1720297833322,-150.0,0.00012978,2]
[331373910,1720297833331,-528.66,0.00012978,2]
[331373911,1720297833341,-793.06,0.00013002,2]
[331373912,1720297833350,-300.0,0.00013052,2]
[331373913,1720297833360,-150.0,0.00013078,2]
[331373914,1720297833369,-528.66,0.00013078,2]
[331373915,1720297833379,-164.92,0.00013078,2]
[331373916,1720297833389,-528.66,0.00013078,2]
[331373917,1720297833398,-520.7022797,0.00013128,2]
[331373918,1720297833410,-419.2,0.00013141,2]
[331373919,1720297833420,-150.0,0.00013178,2]
[331373920,1720297833430,-150.0,0.00013252,2]
[331373921,1720297833439,-687.13,0.00013278,2]
[331373922,1720297833448,-528.66,0.00013278,2]
[331373923,1720297833458,-207.0,0.00013314,2]
[331373924,1720297833467,-150.0,0.00013452,2]
[331373925,1720297833477,-227.19964772,0.00013472,2]
[331373926,1720297833486,-500.0,0.00013484,2]
[331373927,1720297833496,-300.0,0.000135,2]
[331373928,1720297833506,-685.14451651,0.00013516,2]
[331373929,1720297833515,-155.0,0.00013516,2]
[331373930,1720297833525,-604.55927664,0.00013516,2]
[331373931,1720297833534,-155.0,0.00013516,2]
[331373932,1720297833544,-155.0,0.00013516,2]
[331373933,1720297833553,-420.0,0.00013529,2]
[331373934,1720297833563,-155.0,0.00013574,2]
[331373935,1720297833572,-155.36231889,0.00013574,2]
[331373936,1720297833582,-3473.9426893,0.00013574,2]
[331373937,1720297833591,-406.48837099,0.00013574,2]
[331373938,1720297833601,-5538.456,0.0001359,2]
[331373939,1720297833611,-854.45,0.000136,2]
[331373940,1720297833620,-419.2,0.000136,2]
[331373941,1720297833630,-419.2,0.000136,2]
[331373942,1720297833641,-854.45,0.000136,2]
[331373943,1720297833651,-925.39,0.000136,2]
[331373944,1720297833661,-150.0,0.000136,2]
[331373945,1720297833670,-711.38,0.000136,2]
[331373946,1720297833680,-97435.8206,0.00013621,2]
[331373947,1720297833690,-448.31,0.00013699,2]